[Event "Snabb-SM för veteraner, 50+ 2019"]
[Site "Schackcentrum, Vegagatan 20, Gothenburg, Sweden"]
[Date "2019.10.05"]
[Round "6.10"]
[White "Kirppo, Ronny"]
[Black "Madebrink, Lars"]
[Result "1-0"]
[TimeControl "15 minutes + 10 seconds per move from move one"]
[WhiteFideId "1724681"]
[BlackFideId "1701347"]
[WhiteElo "1877"]
[BlackElo "2179"]

1. d4 {[%clk 00:15:18]} {[%emt 00:00:01]} d5 {[%clk 00:15:19]} {[%emt
00:00:01]} 2. c4 {[%clk 00:15:25]} {[%emt 00:00:04]} Nc6 {[%clk 00:15:27]}
{[%emt 00:00:03]} 3. Nc3 {[%clk 00:15:10]} {[%emt 00:00:23]} dxc4 {[%clk
00:15:13]} {[%emt 00:00:24]} 4. Nf3 {[%clk 00:14:57]} {[%emt 00:00:23]} Bg4
{[%clk 00:14:58]} {[%emt 00:00:24]} 5. d5 {[%clk 00:13:50]} {[%emt 00:01:18]}
Bxf3 {[%clk 00:14:58]} {[%emt 00:00:11]} 6. exf3 {[%clk 00:13:12]} {[%emt
00:00:47]} Ne5 {[%clk 00:15:05]} {[%emt 00:00:02]} 7. Bf4 {[%clk 00:12:35]}
{[%emt 00:00:48]} Nd3+ {[%clk 00:14:18]} {[%emt 00:00:57]} 8. Bxd3 {[%clk
00:12:09]} {[%emt 00:00:36]} cxd3 {[%clk 00:14:26]} {[%emt 00:00:02]} 9. Qxd3
{[%clk 00:11:02]} {[%emt 00:01:18]} c6 {[%clk 00:13:46]} {[%emt 00:00:49]} 10.
O-O {[%clk 00:07:42]} {[%emt 00:03:30]} Nf6 {[%clk 00:13:35]} {[%emt 00:00:22]}
11. Rfd1 {[%clk 00:05:56]} {[%emt 00:01:56]} cxd5 {[%clk 00:13:02]} {[%emt
00:00:43]} 12. Qb5+ {[%clk 00:05:14]} {[%emt 00:00:52]} Qd7 {[%clk 00:12:59]}
{[%emt 00:00:13]} 13. Nxd5 {[%clk 00:05:21]} {[%emt 00:00:03]} Nxd5 {[%clk
00:12:33]} {[%emt 00:00:36]} 14. Qxd7+ {[%clk 00:05:21]} {[%emt 00:00:10]} Kxd7
{[%clk 00:12:41]} {[%emt 00:00:02]} 15. Rxd5+ {[%clk 00:05:29]} {[%emt
00:00:02]} Kc6 {[%clk 00:12:31]} {[%emt 00:00:20]} 16. Rd3 {[%clk 00:05:11]}
{[%emt 00:00:28]} e6 {[%clk 00:12:03]} {[%emt 00:00:38]} 17. Rc1+ {[%clk
00:05:07]} {[%emt 00:00:10]} Kb5 {[%clk 00:12:03]} {[%emt 00:00:14]} 18. Rc7
{[%clk 00:04:29]} {[%emt 00:00:48]} b6 {[%clk 00:11:28]} {[%emt 00:00:45]} 19.
Rxf7 {[%clk 00:04:32]} {[%emt 00:00:07]} Bc5 {[%clk 00:11:33]} {[%emt
00:00:05]} 20. Rxg7 {[%clk 00:04:31]} {[%emt 00:00:10]} Rhd8 {[%clk 00:11:42]}
21. Rgd7 {[%clk 00:04:28]} {[%emt 00:00:14]} Rxd7 {[%clk 00:11:36]} {[%emt
00:00:16]} 22. Rxd7 {[%clk 00:04:36]} {[%emt 00:00:02]} h5 {[%clk 00:11:45]}
{[%emt 00:00:01]} 23. Be3 {[%clk 00:04:35]} {[%emt 00:00:11]} Kc6 {[%clk
00:11:42]} {[%emt 00:00:13]} 24. Rd3 {[%clk 00:04:04]} {[%emt 00:00:40]} Bd6
{[%clk 00:11:24]} {[%emt 00:00:27]} 25. g3 {[%clk 00:03:49]} {[%emt 00:00:27]}
Rf8 {[%clk 00:11:11]} {[%emt 00:00:21]} 26. f4 {[%clk 00:03:54]} {[%emt
00:00:06]} Rf5 {[%clk 00:11:20]} 27. Kg2 {[%clk 00:03:44]} {[%emt 00:00:22]} a5
{[%clk 00:11:24]} {[%emt 00:00:06]} 28. Rc3+ {[%clk 00:03:38]} {[%emt
00:00:16]} Kb5 {[%clk 00:11:14]} {[%emt 00:00:20]} 29. Rb3+ {[%clk 00:03:40]}
{[%emt 00:00:07]} Bb4 {[%clk 00:11:23]} 30. Rd3 {[%clk 00:03:23]} {[%emt
00:00:29]} a4 {[%clk 00:11:22]} {[%emt 00:00:11]} 31. Rd7 {[%clk 00:02:49]}
{[%emt 00:00:43]} Rd5 {[%clk 00:09:54]} {[%emt 00:01:38]} 32. Rxd5+ {[%clk
00:02:30]} {[%emt 00:00:30]} exd5 {[%clk 00:10:03]} {[%emt 00:00:01]} 33. f5
{[%clk 00:02:34]} {[%emt 00:00:06]} Kc4 {[%clk 00:10:12]} {[%emt 00:00:01]} 34.
Bxb6 {[%clk 00:02:41]} {[%emt 00:00:03]} d4 {[%clk 00:10:21]} 35. f6 {[%clk
00:02:20]} {[%emt 00:00:32]} d3 {[%clk 00:10:26]} {[%emt 00:00:04]} 36. Kf1
{[%clk 00:01:55]} {[%emt 00:00:35]} a3 {[%clk 00:10:33]} {[%emt 00:00:03]} 37.
bxa3 {[%clk 00:01:56]} {[%emt 00:00:09]} Bxa3 {[%clk 00:10:42]} {[%emt
00:00:01]} 38. Ba5 {[%clk 00:02:02]} {[%emt 00:00:04]} Kd5 {[%clk 00:10:45]}
{[%emt 00:00:06]} 39. Ke1 {[%clk 00:01:59]} {[%emt 00:00:13]} Ke4 {[%clk
00:10:52]} {[%emt 00:00:03]} 40. f7 {[%clk 00:01:50]} {[%emt 00:00:20]} Kf3
{[%clk 00:10:54]} {[%emt 00:00:08]} 41. Bb6 {[%clk 00:01:52]} {[%emt 00:00:08]}
Bb4+ {[%clk 00:10:54]} {[%emt 00:00:09]} 42. Kd1 {[%clk 00:02:02]} Ba3 {[%clk
00:10:35]} {[%emt 00:00:30]} 43. Kd2 {[%clk 00:01:58]} {[%emt 00:00:14]} Ke4
{[%clk 00:10:44]} {[%emt 00:00:01]} 44. Be3 {[%clk 00:01:40]} {[%emt 00:00:29]}
Bb4+ {[%clk 00:10:45]} {[%emt 00:00:08]} 45. Kd1 {[%clk 00:01:48]} {[%emt
00:00:02]} Kf3 {[%clk 00:10:48]} {[%emt 00:00:08]} 46. a4 {[%clk 00:01:50]}
{[%emt 00:00:08]} Ke4 {[%clk 00:10:30]} {[%emt 00:00:27]} 47. a5 {[%clk
00:01:55]} {[%emt 00:00:05]} Kd5 {[%clk 00:10:39]} 48. a6 {[%clk 00:02:03]}
{[%emt 00:00:03]} Kc6 {[%clk 00:10:48]} 49. Bh6 {[%clk 00:02:06]} {[%emt
00:00:08]} 1-0

[Event "Snabb-SM för veteraner, 50+ 2019"]
[Site "Schackcentrum, Vegagatan 20, Gothenburg, Sweden"]
[Date "2019.10.05"]
[Round "6.11"]
[White "Andersson, Christer"]
[Black "Karlsson, Ulf"]
[Result "1-0"]
[TimeControl "15 minutes + 10 seconds per move from move one"]
[WhiteFideId "1734857"]
[BlackFideId "1721674"]
[WhiteElo "1678"]
[BlackElo "2035"]

1. Nf3 {[%clk 00:15:18]} {[%emt 00:00:02]} c5 {[%clk 00:15:17]} {[%emt
00:00:03]} 2. e4 {[%clk 00:15:26]} {[%emt 00:00:02]} Nc6 {[%clk 00:15:26]}
{[%emt 00:00:01]} 3. Nc3 {[%clk 00:15:35]} {[%emt 00:00:02]} e5 {[%clk
00:15:34]} {[%emt 00:00:03]} 4. g3 {[%clk 00:15:35]} {[%emt 00:00:09]} d6
{[%clk 00:15:38]} {[%emt 00:00:05]} 5. Bg2 {[%clk 00:15:43]} {[%emt 00:00:02]}
Nge7 {[%clk 00:15:42]} {[%emt 00:00:06]} 6. O-O {[%clk 00:15:43]} {[%emt
00:00:10]} Ng6 {[%clk 00:15:51]} {[%emt 00:00:01]} 7. d3 {[%clk 00:15:47]}
{[%emt 00:00:07]} Be7 {[%clk 00:15:49]} {[%emt 00:00:12]} 8. h3 {[%clk
00:15:45]} {[%emt 00:00:11]} O-O {[%clk 00:15:55]} {[%emt 00:00:04]} 9. Kh2
{[%clk 00:15:53]} {[%emt 00:00:02]} f5 {[%clk 00:15:45]} {[%emt 00:00:20]} 10.
exf5 {[%clk 00:15:29]} {[%emt 00:00:34]} Bxf5 {[%clk 00:15:52]} {[%emt
00:00:03]} 11. Nd5 {[%clk 00:15:15]} {[%emt 00:00:24]} Be6 {[%clk 00:15:29]}
{[%emt 00:00:32]} 12. Ne1 {[%clk 00:15:11]} {[%emt 00:00:13]} Qd7 {[%clk
00:15:29]} {[%emt 00:00:11]} 13. f4 {[%clk 00:15:09]} {[%emt 00:00:13]} exf4
{[%clk 00:15:04]} {[%emt 00:00:35]} 14. Nxf4 {[%clk 00:15:09]} {[%emt
00:00:10]} Nxf4 {[%clk 00:15:03]} {[%emt 00:00:11]} 15. Bxf4 {[%clk 00:15:15]}
{[%emt 00:00:03]} Bf6 {[%clk 00:14:42]} {[%emt 00:00:31]} 16. c3 {[%clk
00:15:17]} {[%emt 00:00:09]} Rae8 {[%clk 00:14:37]} {[%emt 00:00:15]} 17. Qd2
{[%clk 00:14:05]} {[%emt 00:01:23]} Ne5 {[%clk 00:13:46]} {[%emt 00:01:00]} 18.
Nf3 {[%clk 00:13:43]} {[%emt 00:00:32]} Ng6 {[%clk 00:13:48]} {[%emt 00:00:08]}
19. Bg5 {[%clk 00:13:44]} {[%emt 00:00:09]} b6 {[%clk 00:11:54]} {[%emt
00:02:04]} 20. d4 {[%clk 00:13:28]} {[%emt 00:00:26]} Bc4 {[%clk 00:11:43]}
{[%emt 00:00:21]} 21. Rfe1 {[%clk 00:13:16]} {[%emt 00:00:22]} Qf5 {[%clk
00:09:17]} {[%emt 00:02:35]} 22. Bxf6 {[%clk 00:13:05]} {[%emt 00:00:22]} Qxf6
{[%clk 00:09:17]} {[%emt 00:00:10]} 23. b3 {[%clk 00:12:52]} {[%emt 00:00:23]}
Ba6 {[%clk 00:07:39]} {[%emt 00:01:49]} 24. Rxe8 {[%clk 00:12:56]} {[%emt
00:00:05]} Rxe8 {[%clk 00:07:48]} {[%emt 00:00:02]} 25. Re1 {[%clk 00:13:02]}
{[%emt 00:00:04]} Rxe1 {[%clk 00:07:37]} {[%emt 00:00:21]} 26. Qxe1 {[%clk
00:13:09]} {[%emt 00:00:02]} Kf8 {[%clk 00:07:32]} {[%emt 00:00:15]} 27. Qe4
{[%clk 00:13:00]} {[%emt 00:00:31]} Qe7 {[%clk 00:07:07]} {[%emt 00:00:44]} 28.
Qa8+ {[%clk 00:12:21]} {[%emt 00:00:48]} Kf7 {[%clk 00:06:22]} {[%emt
00:00:55]} 29. Ng5+ {[%clk 00:12:12]} {[%emt 00:00:20]} Qxg5 {[%clk 00:06:03]}
{[%emt 00:00:28]} 30. Bd5+ {[%clk 00:12:21]} {[%emt 00:00:01]} Kf6 {[%clk
00:05:14]} {[%emt 00:00:59]} 31. Qd8+ {[%clk 00:12:29]} {[%emt 00:00:01]} Ne7
{[%clk 00:05:18]} {[%emt 00:00:06]} 32. Qxd6+ {[%clk 00:12:38]} Kf5 {[%clk
00:05:10]} {[%emt 00:00:18]} 33. Qe6# {[%clk 00:12:47]} 1-0

[Event "Snabb-SM för veteraner, 50+ 2019"]
[Site "Schackcentrum, Vegagatan 20, Gothenburg, Sweden"]
[Date "2019.10.06"]
[Round "7.1"]
[White "Svenn, Gosta"]
[Black "Eriksson, Kristian"]
[Result "1-0"]
[TimeControl "15 minutes + 10 seconds per move from move one"]
[WhiteTitle "FM"]
[WhiteFideId "1700553"]
[BlackFideId "1705172"]
[WhiteElo "2272"]
[BlackElo "2025"]

1. d4 {[%clk 00:15:15]} {[%emt 00:00:04]} Nf6 {[%clk 00:15:16]} {[%emt
00:00:04]} 2. c4 {[%clk 00:15:22]} {[%emt 00:00:03]} g6 {[%clk 00:15:22]}
{[%emt 00:00:04]} 3. Nc3 {[%clk 00:15:30]} {[%emt 00:00:03]} Bg7 {[%clk
00:15:29]} {[%emt 00:00:03]} 4. e4 {[%clk 00:15:38]} {[%emt 00:00:03]} d6
{[%clk 00:15:36]} {[%emt 00:00:03]} 5. Nf3 {[%clk 00:15:45]} {[%emt 00:00:03]}
O-O {[%clk 00:15:39]} {[%emt 00:00:06]} 6. Be2 {[%clk 00:15:52]} {[%emt
00:00:03]} Bg4 {[%clk 00:15:39]} {[%emt 00:00:09]} 7. Be3 {[%clk 00:14:58]}
{[%emt 00:01:05]} Nfd7 {[%clk 00:15:29]} {[%emt 00:00:20]} 8. Rc1 {[%clk
00:14:46]} {[%emt 00:00:23]} Bxf3 {[%clk 00:14:02]} {[%emt 00:01:36]} 9. Bxf3
{[%clk 00:14:53]} {[%emt 00:00:03]} e5 {[%clk 00:13:18]} {[%emt 00:00:54]} 10.
d5 {[%clk 00:13:31]} {[%emt 00:01:32]} f5 {[%clk 00:12:44]} {[%emt 00:00:44]}
11. Be2 {[%clk 00:13:04]} {[%emt 00:00:38]} Nf6 {[%clk 00:10:56]} {[%emt
00:01:57]} 12. exf5 {[%clk 00:11:09]} {[%emt 00:02:05]} gxf5 {[%clk 00:11:02]}
{[%emt 00:00:03]} 13. f4 {[%clk 00:11:10]} {[%emt 00:00:09]} Nbd7 {[%clk
00:09:49]} {[%emt 00:01:23]} 14. O-O {[%clk 00:10:57]} {[%emt 00:00:23]} e4
{[%clk 00:06:55]} {[%emt 00:03:05]} 15. Qd2 {[%clk 00:10:34]} {[%emt 00:00:34]}
a6 {[%clk 00:06:45]} {[%emt 00:00:21]} 16. Bd4 {[%clk 00:10:28]} {[%emt
00:00:14]} Qe8 {[%clk 00:06:43]} {[%emt 00:00:12]} 17. Nd1 {[%clk 00:10:19]}
{[%emt 00:00:19]} Qg6 {[%clk 00:06:27]} {[%emt 00:00:27]} 18. Rc3 {[%clk
00:10:03]} {[%emt 00:00:27]} Rae8 {[%clk 00:06:02]} {[%emt 00:00:35]} 19. Rg3
{[%clk 00:09:30]} {[%emt 00:00:43]} Qf7 {[%clk 00:05:49]} {[%emt 00:00:23]} 20.
Ne3 {[%clk 00:09:30]} {[%emt 00:00:10]} Ng4 {[%clk 00:02:30]} {[%emt 00:03:29]}
21. Nxf5 {[%clk 00:07:00]} {[%emt 00:02:40]} Qxf5 {[%clk 00:01:27]} {[%emt
00:01:13]} 22. Bxg4 {[%clk 00:07:06]} {[%emt 00:00:05]} 1-0

[Event "Snabb-SM för veteraner, 50+ 2019"]
[Site "Schackcentrum, Vegagatan 20, Gothenburg, Sweden"]
[Date "2019.10.06"]
[Round "7.2"]
[White "Naslund, Mikael"]
[Black "Borvander, Tom"]
[Result "1-0"]
[TimeControl "15 minutes + 10 seconds per move from move one"]
[WhiteTitle "FM"]
[WhiteFideId "1708260"]
[BlackFideId "1707388"]
[WhiteElo "2076"]
[BlackElo "2066"]

1. d4 {[%clk 00:15:19]} {[%emt 00:00:01]} Nf6 {[%clk 00:15:18]} {[%emt
00:00:02]} 2. c4 {[%clk 00:15:27]} {[%emt 00:00:02]} g6 {[%clk 00:15:26]}
{[%emt 00:00:02]} 3. Nc3 {[%clk 00:15:36]} Bg7 {[%clk 00:15:33]} {[%emt
00:00:03]} 4. e4 {[%clk 00:15:44]} {[%emt 00:00:02]} d6 {[%clk 00:15:42]}
{[%emt 00:00:02]} 5. Be2 {[%clk 00:15:51]} {[%emt 00:00:03]} O-O {[%clk
00:15:44]} {[%emt 00:00:08]} 6. Nf3 {[%clk 00:15:59]} e5 {[%clk 00:15:48]}
{[%emt 00:00:07]} 7. O-O {[%clk 00:16:03]} {[%emt 00:00:05]} Nc6 {[%clk
00:15:56]} {[%emt 00:00:03]} 8. d5 {[%clk 00:16:11]} {[%emt 00:00:02]} Ne7
{[%clk 00:16:03]} {[%emt 00:00:03]} 9. Ne1 {[%clk 00:16:09]} {[%emt 00:00:11]}
Nd7 {[%emt 00:00:05]} 10. f3 {[%clk 00:16:14]} {[%emt 00:00:03]} a5 {[%clk
00:14:51]} {[%emt 00:01:30]} 11. Nd3 {[%clk 00:16:14]} {[%emt 00:00:10]} b6
{[%clk 00:14:59]} {[%emt 00:00:02]} 12. Bd2 {[%clk 00:15:40]} {[%emt 00:00:43]}
f5 {[%clk 00:14:18]} {[%emt 00:00:51]} 13. g4 {[%clk 00:15:28]} {[%emt
00:00:23]} Kh8 {[%clk 00:12:25]} {[%emt 00:02:03]} 14. g5 {[%clk 00:15:12]}
{[%emt 00:00:26]} f4 {[%clk 00:12:21]} {[%emt 00:00:15]} 15. h4 {[%clk
00:14:33]} {[%emt 00:00:49]} Ng8 {[%emt 00:00:20]} 16. Rf2 {[%emt 00:00:39]}
Nc5 {[%clk 00:10:55]} {[%emt 00:00:36]} 17. Nxc5 {[%clk 00:12:51]} {[%emt
00:01:52]} bxc5 {[%clk 00:11:03]} {[%emt 00:00:01]} 18. a3 {[%clk 00:12:13]}
{[%emt 00:00:49]} Rf7 {[%clk 00:09:39]} {[%emt 00:01:34]} 19. b4 {[%clk
00:10:15]} {[%emt 00:02:08]} axb4 {[%clk 00:07:11]} {[%emt 00:02:38]} 20. axb4
{[%clk 00:10:23]} {[%emt 00:00:02]} Rxa1 21. Qxa1 {[%clk 00:10:32]} cxb4 {[%clk
00:07:13]} {[%emt 00:00:16]} 22. Nb5 {[%clk 00:09:49]} {[%emt 00:00:52]} Bf8
{[%clk 00:06:58]} {[%emt 00:00:24]} 23. Bxb4 {[%clk 00:08:35]} {[%emt
00:01:24]} h6 {[%clk 00:06:57]} {[%emt 00:00:12]} 24. Qa8 {[%clk 00:05:51]}
{[%emt 00:02:54]} Be7 {[%clk 00:05:55]} {[%emt 00:01:12]} 25. Ba5 {[%clk
00:05:10]} {[%emt 00:00:51]} Qd7 {[%clk 00:05:39]} {[%emt 00:00:26]} 26. Bf1
{[%clk 00:04:16]} {[%emt 00:01:03]} hxg5 {[%clk 00:04:55]} {[%emt 00:00:54]} 27.
hxg5 {[%clk 00:04:25]} {[%emt 00:00:02]} Bxg5 {[%clk 00:04:37]} {[%emt
00:00:28]} 28. Bxc7 {[%clk 00:03:32]} {[%emt 00:01:03]} Be7 {[%clk 00:04:15]}
{[%emt 00:00:32]} 29. Rh2+ {[%clk 00:03:17]} {[%emt 00:00:24]} Kg7 {[%clk
00:04:19]} {[%emt 00:00:06]} 30. Bh3 {[%clk 00:03:18]} {[%emt 00:00:10]} 1-0

[Event "Snabb-SM för veteraner, 50+ 2019"]
[Site "Schackcentrum, Vegagatan 20, Gothenburg, Sweden"]
[Date "2019.10.06"]
[Round "7.3"]
[White "Angskog, Kent"]
[Black "Holst, Conny"]
[Result "1/2-1/2"]
[TimeControl "15 minutes + 10 seconds per move from move one"]
[WhiteFideId "1703668"]
[BlackFideId "1701428"]
[WhiteElo "2136"]
[BlackElo "2166"]

1. c4 {[%clk 00:15:16]} {[%emt 00:00:03]} Nf6 {[%clk 00:15:17]} {[%emt
00:00:04]} 2. Nc3 {[%clk 00:15:21]} {[%emt 00:00:05]} e6 {[%clk 00:15:25]}
{[%emt 00:00:02]} 3. e4 {[%clk 00:15:28]} {[%emt 00:00:03]} d5 {[%clk
00:15:08]} {[%emt 00:00:27]} 4. e5 {[%clk 00:15:23]} {[%emt 00:00:15]} d4
{[%clk 00:13:46]} {[%emt 00:01:32]} 5. exf6 {[%clk 00:15:28]} {[%emt 00:00:05]}
dxc3 {[%clk 00:13:53]} {[%emt 00:00:03]} 6. bxc3 {[%clk 00:15:34]} {[%emt
00:00:03]} Qxf6 {[%clk 00:13:34]} {[%emt 00:00:30]} 7. Nf3 {[%clk 00:14:45]}
{[%emt 00:00:58]} c5 {[%clk 00:13:05]} {[%emt 00:00:40]} 8. d4 {[%clk
00:13:26]} {[%emt 00:01:28]} h6 {[%clk 00:13:03]} {[%emt 00:00:12]} 9. Be2
{[%clk 00:12:03]} {[%emt 00:01:33]} cxd4 {[%emt 00:00:32]} 10. cxd4 {[%clk
00:11:59]} {[%emt 00:00:13]} Bb4+ {[%clk 00:12:49]} {[%emt 00:00:04]} 11. Bd2
{[%clk 00:12:01]} {[%emt 00:00:07]} Bxd2+ {[%clk 00:12:55]} {[%emt 00:00:04]}
12. Qxd2 {[%clk 00:12:08]} {[%emt 00:00:03]} O-O {[%clk 00:12:54]} {[%emt
00:00:11]} 13. O-O {[%clk 00:12:15]} {[%emt 00:00:03]} b6 {[%clk 00:11:15]}
{[%emt 00:01:50]} 14. a4 {[%clk 00:08:12]} {[%emt 00:04:12]} Bb7 {[%clk
00:10:08]} {[%emt 00:01:17]} 15. a5 {[%clk 00:08:06]} {[%emt 00:00:16]} Rd8
{[%clk 00:09:45]} {[%emt 00:00:34]} 16. Rfd1 {[%clk 00:06:30]} {[%emt
00:01:47]} Nc6 {[%clk 00:09:01]} {[%emt 00:00:54]} 17. a6 {[%clk 00:04:50]}
{[%emt 00:01:50]} Bc8 {[%clk 00:08:57]} {[%emt 00:00:14]} 18. Qe3 {[%clk
00:04:43]} {[%emt 00:00:17]} Bd7 {[%clk 00:08:30]} {[%emt 00:00:37]} 19. d5
{[%clk 00:04:26]} {[%emt 00:00:26]} exd5 {[%clk 00:07:52]} {[%emt 00:00:48]} 20.
cxd5 {[%clk 00:04:34]} {[%emt 00:00:02]} Re8 {[%clk 00:07:07]} {[%emt
00:00:56]} 21. Qd2 {[%clk 00:04:41]} {[%emt 00:00:02]} Na5 {[%clk 00:06:52]}
{[%emt 00:00:25]} 22. Nd4 {[%clk 00:04:22]} {[%emt 00:00:29]} Rad8 {[%clk
00:06:49]} {[%emt 00:00:14]} 23. Qb4 {[%clk 00:03:07]} {[%emt 00:01:24]} Re4
{[%clk 00:06:01]} {[%emt 00:00:59]} 24. Bf3 {[%clk 00:02:50]} {[%emt 00:00:27]}
Rxd4 {[%clk 00:05:25]} {[%emt 00:00:46]} 25. Rxd4 {[%clk 00:02:38]} {[%emt
00:00:22]} Nb3 {[%clk 00:05:33]} {[%emt 00:00:02]} 26. Rad1 {[%clk 00:02:24]}
{[%emt 00:00:22]} Nxd4 {[%clk 00:05:38]} {[%emt 00:00:06]} 27. Rxd4 {[%clk
00:02:00]} {[%emt 00:00:34]} Rc8 {[%clk 00:05:17]} {[%emt 00:00:31]} 28. h3
{[%clk 00:01:28]} {[%emt 00:00:42]} Qe5 {[%clk 00:05:09]} {[%emt 00:00:19]} 29.
g3 {[%clk 00:01:10]} {[%emt 00:00:28]} Bxh3 {[%clk 00:04:30]} {[%emt 00:00:49]}
30. Re4 {[%clk 00:00:57]} {[%emt 00:00:22]} Qf6 {[%clk 00:03:59]} {[%emt
00:00:42]} 31. Rf4 {[%clk 00:00:54]} {[%emt 00:00:12]} Qa1+ {[%clk 00:02:40]}
{[%emt 00:01:29]} 32. Kh2 {[%clk 00:00:59]} {[%emt 00:00:05]} g5 {[%clk
00:02:21]} {[%emt 00:00:29]} 33. Re4 {[%clk 00:00:23]} {[%emt 00:00:47]} Bf5
{[%clk 00:02:16]} {[%emt 00:00:15]} 34. Rc4 {[%clk 00:00:22]} {[%emt 00:00:11]}
Qxa6 {[%clk 00:01:56]} {[%emt 00:00:30]} 35. Rxc8+ {[%clk 00:00:14]} {[%emt
00:00:18]} Qxc8 {[%clk 00:02:05]} {[%emt 00:00:01]} 36. Qd6 {[%clk 00:00:19]}
{[%emt 00:00:05]} Kg7 {[%clk 00:01:38]} {[%emt 00:00:37]} 37. Qe5+ {[%clk
00:00:27]} {[%emt 00:00:02]} Kg6 {[%clk 00:01:46]} {[%emt 00:00:01]} 38. g4
{[%clk 00:00:31]} {[%emt 00:00:07]} Bd3 {[%clk 00:01:36]} {[%emt 00:00:20]} 39.
Be4+ {[%clk 00:00:33]} {[%emt 00:00:07]} Bxe4 {[%clk 00:01:44]} {[%emt
00:00:03]} 40. Qxe4+ {[%clk 00:00:42]} f5 {[%clk 00:01:33]} {[%emt 00:00:21]}
41. Qe7 {[%clk 00:00:38]} {[%emt 00:00:13]} fxg4 {[%clk 00:00:52]} {[%emt
00:00:52]} 42. d6 {[%clk 00:00:45]} {[%emt 00:00:03]} Qf5 {[%clk 00:01:00]}
{[%emt 00:00:02]} 43. d7 {[%clk 00:00:12]} {[%emt 00:00:43]} Qxf2+ {[%clk
00:01:07]} {[%emt 00:00:03]} 44. Kh1 {[%clk 00:00:21]} {[%emt 00:00:01]} Qf1+
{[%clk 00:00:43]} {[%emt 00:00:35]} 45. Kh2 {[%clk 00:00:30]} g3+ {[%clk
00:00:52]} {[%emt 00:00:01]} 46. Kxg3 {[%clk 00:00:37]} {[%emt 00:00:03]} Qg1+
{[%clk 00:01:01]} {[%emt 00:00:01]} 47. Kf3 {[%clk 00:00:39]} {[%emt 00:00:08]}
Qf1+ {[%clk 00:00:44]} {[%emt 00:00:26]} 48. Kg3 {[%emt 00:00:02]} 1/2-1/2